fUSD/lending_fUSD_20260217
["ID","MTS","AMOUNT","RATE_DAILY","PERIOD"]
[405769990,1771289470521,-401.387818,0.00038661,120]
[405769991,1771289470530,-1283.734008,0.00038661,120]
[405769992,1771289470541,-401.387818,0.00038661,120]
[405769993,1771289470551,-401.387818,0.00038661,120]
[405769994,1771289470562,-840.193049,0.00038661,120]
[405769995,1771289470572,-151.0,0.00038661,120]
[405769996,1771289470582,-456.35311,0.00038661,120]
[405769997,1771289470592,-401.387818,0.00038661,120]
[405769998,1771289470602,-840.193049,0.00038661,120]
[405769999,1771289470612,-456.35311,0.00038661,120]
[405770000,1771289470622,-840.193049,0.00038661,120]
[405770001,1771289470639,-456.35311,0.00038661,120]
[405770002,1771289470650,-312.347401,0.00038661,120]
[405770003,1771289470659,-840.193049,0.00038661,120]
[405770004,1771289470670,-456.35311,0.00038661,120]
[405770005,1771289470680,-312.347401,0.00038661,120]
[405770006,1771289470689,-312.347401,0.00038661,120]
[405770007,1771289470700,-312.347401,0.00038661,120]
[405770008,1771289470710,-917.857706,0.00038661,120]
[405770009,1771289470719,-151.0,0.00038661,120]
[405770010,1771289470729,-917.857706,0.00038661,120]
[405770011,1771289470738,-917.857706,0.00038661,120]
[405770012,1771289470748,-917.857706,0.00038661,120]
[405770013,1771289470759,-151.0,0.00038661,120]
[405770014,1771289470768,-151.0,0.00038661,120]
[405770015,1771289470778,-151.0,0.00038661,120]
[405770016,1771289470787,-151.0,0.00038661,120]
[405770017,1771289470796,-151.0,0.00038661,120]
[405770018,1771289470806,-151.0,0.00038661,120]
[405770019,1771289470815,-151.0,0.00038661,120]
[405770020,1771289470825,-568.083249,0.00038661,120]
[405770021,1771289470834,-207.034137,0.00038661,120]
[405770022,1771289470843,-1454.008287,0.00038661,120]
[405770023,1771289470855,-568.083249,0.00038661,120]
[405770024,1771289470864,-1454.008287,0.00038661,120]
[405770025,1771289470874,-568.083249,0.00038661,120]
[405770026,1771289470883,-568.083249,0.00038661,120]
[405770027,1771289470892,-419.179155,0.00038661,120]
[405770028,1771289470901,-241.399498,0.00038661,120]
[405770029,1771289470910,-1454.008287,0.00038661,120]
[405770030,1771289470919,-151.0,0.00038661,120]
[405770031,1771289470929,-419.179155,0.00038661,120]
[405770032,1771289470938,-241.399498,0.00038661,120]
[405770033,1771289470948,-1454.008287,0.00038661,120]
[405770034,1771289470957,-151.0,0.00038661,120]
[405770035,1771289470966,-419.179155,0.00038661,120]
[405770036,1771289470975,-241.399498,0.00038661,120]
[405770037,1771289470985,-419.179155,0.00038661,120]
[405770038,1771289470994,-151.0,0.00038661,120]
[405770039,1771289471003,-241.399498,0.00038661,120]
[405770040,1771289471012,-300.241683,0.00038661,120]
[405770041,1771289471021,-1850.53613,0.00038661,120]
[405770042,1771289471031,-1507.133565,0.00038661,7]
[405770043,1771289471040,-1532.554123,0.00038661,120]
[405770044,1771289471050,-1850.53613,0.00038661,120]
[405770045,1771289471059,-1507.133565,0.00038661,7]
[405770046,1771289471070,-725.858335,0.00038661,120]
[405770047,1771289471081,-151.0,0.00038661,120]
[405770048,1771289471090,-1532.554123,0.00038661,120]
[405770049,1771289471099,-165.728016,0.00038661,120]
[405770050,1771289471111,-1507.133565,0.00038661,7]
[405770051,1771289471120,-1850.53613,0.00038661,120]
[405770052,1771289471129,-725.858335,0.00038661,120]
[405770053,1771289471139,-1532.554123,0.00038661,120]
[405770054,1771289471149,-165.728016,0.00038661,120]
[405770055,1771289471158,-1850.53613,0.00038661,120]
[405770056,1771289471168,-725.858335,0.00038661,120]
[405770057,1771289471177,-1507.133565,0.00038661,7]
[405770058,1771289471187,-1532.554123,0.00038661,120]
[405770059,1771289471196,-165.728016,0.00038661,120]
[405770060,1771289471205,-725.858335,0.00038661,120]
[405770061,1771289471215,-167.430671,0.00038661,120]
[405770062,1771289471225,-526.68354,0.00038661,31]
[405770063,1771289471235,-165.728016,0.00038661,120]
[405770064,1771289471244,-167.430671,0.00038661,120]
[405770065,1771289471254,-526.68354,0.00038661,31]
[405770066,1771289471263,-151.0,0.00038661,120]
[405770067,1771289471274,-167.430671,0.00038661,120]
[405770068,1771289471283,-526.68354,0.00038661,31]
[405770069,1771289471292,-151.0,0.00038661,120]
[405770070,1771289471302,-167.430671,0.00038661,120]
[405770071,1771289471311,-526.68354,0.00038661,31]
[405770072,1771289471324,-677.012703,0.00038661,120]
[405770073,1771289471336,-151.0,0.00038661,120]
[405770074,1771289471345,-151.893612,0.00038661,120]
[405770075,1771289471356,-677.012703,0.00038661,120]
[405770076,1771289471366,-151.0,0.00038661,120]
[405770077,1771289471375,-151.893612,0.00038661,120]
[405770078,1771289471385,-677.012703,0.00038661,120]
[405770079,1771289471394,-151.0,0.00038661,120]
[405770080,1771289471403,-151.893612,0.00038661,120]
[405770081,1771289471412,-677.012703,0.00038661,120]
[405770082,1771289471421,-151.893612,0.00038661,120]
[405770083,1771289471430,-151.0,0.00038661,120]
[405770084,1771289471440,-159.735089,0.00038661,120]
[405770085,1771289471449,-151.0,0.00038661,120]
[405770086,1771289471459,-151.0,0.00038661,120]
[405770087,1771289471468,-208.135025,0.00038661,120]
[405770088,1771289471479,-151.0,0.00038661,120]
[405770089,1771289471489,-208.135025,0.00038661,120]
[405770090,1771289471499,-208.135025,0.00038661,120]
[405770091,1771289471509,-161.373076,0.00038661,120]
[405770092,1771289471519,-208.135025,0.00038661,120]
[405770093,1771289471529,-161.373076,0.00038661,120]
[405770094,1771289471539,-161.373076,0.00038661,120]
[405770095,1771289471549,-151.0,0.00038661,120]
[405770096,1771289471559,-161.373076,0.00038661,120]
[405770097,1771289471569,-631.84551,0.00038661,120]
[405770098,1771289471579,-631.84551,0.00038661,120]
[405770099,1771289471589,-951.199272,0.00038661,120]
[405770100,1771289471599,-631.84551,0.00038661,120]
[405770101,1771289471612,-730.436768,0.00038661,120]
[405770102,1771289471622,-951.199272,0.00038661,120]
[405770103,1771289471634,-631.84551,0.00038661,120]
[405770104,1771289471644,-730.436768,0.00038661,120]
[405770105,1771289471654,-951.199272,0.00038661,120]
[405770106,1771289471664,-384.01825,0.00038661,120]
[405770107,1771289471674,-730.436768,0.00038661,120]
[405770108,1771289471683,-671.551268,0.00038661,120]
[405770109,1771289471692,-951.199272,0.00038661,120]
[405770110,1771289471702,-384.01825,0.00038661,120]
[405770111,1771289471711,-730.436768,0.00038661,120]
[405770112,1771289471720,-671.551268,0.00038661,120]
[405770113,1771289471730,-621.873875,0.00038661,120]
[405770114,1771289471739,-671.551268,0.00038661,120]
[405770115,1771289471748,-621.873875,0.00038661,120]
[405770116,1771289471757,-671.551268,0.00038661,120]
[405770117,1771289471767,-384.01825,0.00038661,120]
[405770118,1771289471777,-621.873875,0.00038661,120]
[405770119,1771289471787,-2562.806553,0.00038661,120]
[405770120,1771289471796,-621.873875,0.00038661,120]
[405770121,1771289471806,-384.01825,0.00038661,120]
[405770122,1771289471815,-2562.806553,0.00038661,120]
[405770123,1771289471825,-497.593868,0.00038661,120]
[405770124,1771289471834,-691.970779,0.00038661,120]
[405770125,1771289471843,-2562.806553,0.00038661,120]
[405770126,1771289471854,-497.593868,0.00038661,120]
[405770127,1771289471863,-691.970779,0.00038661,120]
[405770128,1771289471874,-2562.806553,0.00038661,120]
[405770129,1771289471883,-497.593868,0.00038661,120]
[405770130,1771289471892,-691.970779,0.00038661,120]
[405770131,1771289471903,-691.970779,0.00038661,120]
[405770132,1771289471915,-497.593868,0.00038661,120]
[405770133,1771289471927,-103127.4109296,0.00038661,2]
[405770134,1771289471936,-399.0,0.00038663,90]
[405770135,1771289471946,-152.0,0.00038684,12]
[405770136,1771289471955,-235.93238,0.00038688,30]
[405770137,1771289471965,-1338.0,0.00038741,2]
[405770138,1771289471976,-3488.651,0.00038741,2]
[405770139,1771289471985,-617.0,0.00038741,2]
[405770140,1771289471997,-1164.0,0.00038741,2]
[405770141,1771289472007,-1275.0,0.00038741,2]
[405770142,1771289472018,-1208.0,0.00038741,2]
[405770143,1771289472028,-2452.0,0.00038741,2]
[405770144,1771289472038,-5971.0,0.00038741,2]
[405770145,1771289472048,-7871.53998996,0.00038834,2]
[405770146,1771289472059,-558.7,0.0003888,120]
[405770147,1771289472069,-5800.0,0.00038896,14]
[405770148,1771289472078,-229.10815207,0.000389,120]
[405770149,1771289472087,-177.53569362,0.000389,120]
[405770150,1771289472097,-213.31225603,0.000389,120]
[405770151,1771289472107,-162.96676263,0.000389,120]
[405770152,1771289472117,-519.95337517,0.000389,120]
[405770153,1771289472132,-194.32951428,0.000389,120]
[405770154,1771289472151,-4606.81701248,0.00038904,14]
[405770155,1771289472163,-5800.0,0.00038904,14]
[405770156,1771289472174,-1000.0,0.00038904,2]
[405770157,1771289472186,-214.0,0.0003891,30]
[405770158,1771289472200,-224.6331403,0.00038913,120]
[405770159,1771289472211,-500.0,0.00038985,120]
[405770160,1771289472221,-350.0,0.00038997,6]
[405770161,1771289472232,-30852.29206957,0.00039,2]
[405770162,1771289472243,-2106.93,0.00039,30]
[405770163,1771289472252,-397.9,0.00039,14]
[405770164,1771289472262,-354.28,0.00039,14]
[405770165,1771289472273,-2301.3,0.00039041,120]
[405770166,1771289472287,-235.93238,0.00039088,30]
[405770167,1771289472298,-350.0,0.00039238,7]
[405770168,1771289472309,-1036.7,0.00039253,30]
[405770169,1771289472320,-235.93238,0.00039288,30]
[405770170,1771289472330,-502.0,0.00039348,22]
[405770171,1771289472340,-276.217143,0.000394,18]
[405770172,1771289472350,-1000.0,0.00039452,2]
[405770173,1771289472360,-350.0,0.00039456,4]
[405770174,1771289472370,-12758.0400283,0.00039484,2]
[405770175,1771289472828,-500.0,0.00015903,2]
[405770176,1771289472838,-8.0,0.00039484,2]
[405770178,1771289828148,10000.01,9.551e-05,2]
[405770179,1771289828175,10000.01,9.551e-05,2]
[405770180,1771289828198,10000.01,9.551e-05,2]
[405770181,1771289828221,10000.01,9.551e-05,2]
[405770182,1771289828244,10000.01,9.551e-05,2]
[405770183,1771289828267,10000.01,9.551e-05,2]
[405770184,1771289828290,10000.01,9.551e-05,2]
[405770185,1771289828316,10000.01,9.551e-05,2]
[405770186,1771289828342,10000.01,9.551e-05,2]
[405770187,1771289828367,10000.01,9.551e-05,2]
[405770188,1771289830539,-2109.89657767,9.551e-05,2]
[405770189,1771289830556,-10000.01,9.551e-05,2]
[405770190,1771289830592,-10000.01,9.551e-05,2]
[405770191,1771289830629,-10000.01,9.551e-05,2]
[405770192,1771289834621,-10000.01,9.551e-05,2]
[405770193,1771289834735,-10000.01,9.551e-05,2]
[405770194,1771289834871,-10000.01,9.551e-05,2]
[405770195,1771289835003,-10000.01,9.551e-05,2]
[405770196,1771289835148,-10000.01,9.551e-05,2]
[405770197,1771289835246,-10000.01,9.551e-05,2]
[405770198,1771289835362,-10000.01,9.551e-05,2]
[405770199,1771289835479,-10000.01,9.551e-05,2]
[405770200,1771289835612,-10000.01,9.551e-05,2]
[405770201,1771289835805,-10000.01,9.551e-05,2]
[405770202,1771289835927,-10000.01,9.551e-05,2]
[405770203,1771289836051,-10000.01,9.551e-05,2]
[405770204,1771289836143,-10000.01,9.551e-05,2]
[405770205,1771289836293,-10000.01,9.551e-05,2]
[405770206,1771289836354,-10000.01,9.551e-05,2]
[405770207,1771289837647,-10000.01,9.551e-05,2]
[405770208,1771289837757,-10000.01,9.551e-05,2]
[405770209,1771289837866,-10000.01,9.551e-05,2]
[405770210,1771289837968,-10000.01,9.551e-05,2]
[405770211,1771289838101,-10000.01,9.551e-05,2]
[405770212,1771289838372,-10000.01,9.551e-05,2]
[405770213,1771289838528,-10000.01,9.551e-05,2]
[405770214,1771289887920,3269.687653,7.945e-05,2]
[405770215,1771289926419,253.22448954,9.4e-05,3]
[405770216,1771289926459,299.67550984,9.4e-05,3]
[405770217,1771289926515,330.6428567,9.4e-05,3]
[405770218,1771289926564,315.15918327,9.4e-05,3]
[405770219,1771290003769,308.44487882,8.551e-05,2]
[405770223,1771290340203,-4934.53766365,9.3e-05,2]
[405770224,1771290340431,-1477.06908862,9.3e-05,2]
[405770225,1771290340525,-3598.67396364,9.3e-05,2]
[405770226,1771290342969,-3447.19785912,9.3e-05,2]
[405770227,1771290343026,-3105.61428176,9.3e-05,2]
[405770228,1771290345967,-3025.0577978,9.3e-05,2]
[405770229,1771290346002,-3949.8944044,9.3e-05,2]
[405770230,1771290346088,-4573.04650698,9.3e-05,2]
[405770231,1771290346125,-853.91698604,9.3e-05,2]
[405770232,1771290349026,-3527.12049057,9.3e-05,2]
[405770233,1771290349087,-2945.76901886,9.3e-05,2]
[405770247,1771290478503,-10000.01,9.3e-05,2]
[405770248,1771290478702,-10000.01,9.3e-05,2]
[405770249,1771290478820,-10000.01,9.3e-05,2]
[405770250,1771290478943,-10000.01,9.3e-05,2]
[405770251,1771290486948,-10000.01,9.3e-05,2]
[405770252,1771290487065,-10000.01,9.3e-05,2]
[405770253,1771290487166,-10000.01,9.3e-05,2]
[405770254,1771290487305,-10000.01,9.3e-05,2]
[405770255,1771290532470,291.0,0.0001,5]
[405770259,1771290631742,-150.0,9.273e-05,2]
[405770260,1771290631752,-150.0,9.273e-05,2]
[405770261,1771290631762,-151.0,9.297e-05,2]
[405770262,1771290631772,-193.83,9.298e-05,2]
[405770263,1771290631783,-106.17,9.298e-05,2]
[405770264,1771290631792,-1200.0,9.298e-05,2]
[405770265,1771290631802,-254.33868004,9.299e-05,2]
[405770266,1771290631812,-870.0,9.299e-05,2]
[405770267,1771290631821,-500.0,9.299e-05,2]
[405770268,1771290631831,-438.92684529,9.299e-05,2]
[405770269,1771290631840,-436.29376731,9.299e-05,2]
[405770270,1771290631851,-63.70623269,9.299e-05,2]
[405770271,1771290631860,-150.0,9.299e-05,2]
[405770272,1771290631870,-182.50008066,9.299e-05,2]
[405770273,1771290631879,-405.47255337,9.299e-05,2]
[405770274,1771290631888,-1051.99289102,9.299e-05,2]
[405770280,1771290637791,-5.60999128,9.299e-05,2]
[405770281,1771290637800,-1057.6028823,9.299e-05,2]
[405770282,1771290637809,-1057.6028823,9.299e-05,2]
[405770283,1771290637819,-1057.6028823,9.299e-05,2]
[405770284,1771290637828,-1057.6028823,9.299e-05,2]
[405770285,1771290637837,-1057.6028823,9.299e-05,2]
[405770286,1771290637846,-1057.6028823,9.299e-05,2]
[405770287,1771290637856,-1057.6028823,9.299e-05,2]
[405770288,1771290637866,-1057.6028823,9.299e-05,2]
[405770289,1771290637875,-1057.6028823,9.299e-05,2]
[405770290,1771290637884,-1057.6028823,9.299e-05,2]
[405770291,1771290637894,-1057.6028823,9.299e-05,2]
[405770292,1771290637903,-1057.6028823,9.299e-05,2]
[405770293,1771290637913,-1057.6028823,9.299e-05,2]
[405770294,1771290637922,-1057.6028823,9.299e-05,2]
[405770295,1771290637931,-1057.6028823,9.299e-05,2]
[405770296,1771290637941,-1057.6028823,9.299e-05,2]
[405770297,1771290637954,-507.13976312,9.299e-05,2]
[405770298,1771290637989,-550.46311918,9.299e-05,2]
[405770299,1771290637998,-1057.6028823,9.299e-05,2]
[405770300,1771290638008,-1057.6028823,9.299e-05,2]
[405770301,1771290638019,-1057.6028823,9.299e-05,2]
[405770302,1771290638028,-1057.6028823,9.299e-05,2]
[405770303,1771290638038,-1057.6028823,9.299e-05,2]
[405770304,1771290638047,-1057.6028823,9.299e-05,2]
[405770305,1771290638056,-1057.6028823,9.299e-05,2]
[405770306,1771290638065,-1057.6028823,9.299e-05,2]
[405770307,1771290638075,-1057.6028823,9.299e-05,2]
[405770308,1771290638084,-1057.6028823,9.299e-05,2]
[405770309,1771290638093,-1057.6028823,9.299e-05,2]
[405770310,1771290638102,-1057.6028823,9.299e-05,2]
[405770311,1771290638112,-920.0961299,9.299e-05,2]
[405770312,1771290638123,-137.5067524,9.299e-05,2]
[405770313,1771290638133,-1057.6028823,9.299e-05,2]
[405770314,1771290638142,-1057.6028823,9.299e-05,2]
[405770315,1771290638152,-1057.6028823,9.299e-05,2]
[405770316,1771290638162,-545.53795962,9.299e-05,2]
[405770317,1771290638188,-512.06492268,9.299e-05,2]
[405770318,1771290638198,-1057.6028823,9.299e-05,2]
[405770319,1771290638207,-1057.6028823,9.299e-05,2]
[405770320,1771290638217,-1057.6028823,9.299e-05,2]
[405770321,1771290638226,-1057.6028823,9.299e-05,2]
[405770323,1771290638236,-1057.6028823,9.299e-05,2]
[405770324,1771290638245,-1057.6028823,9.299e-05,2]
[405770326,1771290638255,-1057.6028823,9.299e-05,2]
[405770329,1771290638264,-1057.6028823,9.299e-05,2]
[405770330,1771290638273,-1057.6028823,9.299e-05,2]
[405770333,1771290638283,-1057.6028823,9.299e-05,2]
[405770335,1771290638293,-1057.6028823,9.299e-05,2]
[405770336,1771290638302,-1057.6028823,9.299e-05,2]
[405770338,1771290638312,-1057.6028823,9.299e-05,2]
[405770341,1771290638322,-1057.6028823,9.299e-05,2]
[405770343,1771290638331,-1057.6028823,9.299e-05,2]
[405770346,1771290638341,-1057.6028823,9.299e-05,2]
[405770349,1771290638350,-1057.6028823,9.299e-05,2]
[405770351,1771290638361,-1057.6028823,9.299e-05,2]
[405770353,1771290638371,-1057.6028823,9.299e-05,2]
[405770355,1771290638381,-1057.6028823,9.299e-05,2]
[405770357,1771290638391,-1057.6028823,9.299e-05,2]
[405770359,1771290638401,-1057.6028823,9.299e-05,2]
[405770361,1771290638410,-1057.6028823,9.299e-05,2]
[405770363,1771290638419,-1057.6028823,9.299e-05,2]
[405770364,1771290638429,-1057.6028823,9.299e-05,2]
[405770365,1771290638438,-1057.6028823,9.299e-05,2]
[405770366,1771290638447,-1057.6028823,9.299e-05,2]
[405770367,1771290638456,-1057.6028823,9.299e-05,2]
[405770368,1771290638466,-1057.6028823,9.299e-05,2]
[405770369,1771290638475,-1057.6028823,9.299e-05,2]
[405770370,1771290638485,-1057.6028823,9.299e-05,2]
[405770371,1771290638494,-1057.6028823,9.299e-05,2]
[405770372,1771290638503,-1057.6028823,9.299e-05,2]
[405770373,1771290638513,-1057.6028823,9.299e-05,2]
[405770374,1771290638523,-1057.6028823,9.299e-05,2]
[405770375,1771290638532,-1057.6028823,9.299e-05,2]
[405770376,1771290638541,-298.98960229,9.299e-05,2]
[405770377,1771290638550,-1057.60288228,9.299e-05,2]
[405770378,1771290638570,-1057.60288228,9.299e-05,2]
[405770379,1771290638580,-1057.60288228,9.299e-05,2]
[405770380,1771290638590,-1057.60288228,9.299e-05,2]
[405770381,1771290638599,-1057.60288228,9.299e-05,2]
[405770382,1771290638609,-1057.60288228,9.299e-05,2]
[405770383,1771290638619,-1057.60288228,9.299e-05,2]
[405770384,1771290638628,-1057.60288228,9.299e-05,2]
[405770385,1771290638638,-1057.60288228,9.299e-05,2]
[405770386,1771290638648,-1057.60288228,9.299e-05,2]
[405770387,1771290638658,-1057.60288228,9.299e-05,2]
[405770388,1771290638667,-1057.60288228,9.299e-05,2]
[405770389,1771290638677,-1057.60288228,9.299e-05,2]
[405770390,1771290638686,-1057.60288228,9.299e-05,2]
[405770391,1771290638696,-1057.60288228,9.299e-05,2]
[405770392,1771290638705,-1057.60288228,9.299e-05,2]
[405770393,1771290638715,-1057.60288228,9.299e-05,2]
[405770394,1771290638725,-500.0,9.299e-05,2]
[405770395,1771290638735,-1057.60288228,9.299e-05,2]
[405770396,1771290638744,-500.0,9.299e-05,2]
[405770397,1771290638753,-500.0,9.299e-05,2]
[405770398,1771290638763,-479.79682139,9.299e-05,2]
[405770399,1771290638772,-401.09317936,9.299e-05,2]
[405770400,1771290638782,-500.0,9.299e-05,2]
[405770401,1771290638792,-500.0,9.299e-05,2]
[405770402,1771290638801,-500.0,9.299e-05,2]
[405770403,1771290638812,-500.0,9.299e-05,2]
[405770404,1771290638821,-500.0,9.299e-05,2]
[405770405,1771290638831,-474.68741589,9.299e-05,2]
[405770406,1771290638841,-500.0,9.299e-05,2]
[405770407,1771290638851,-500.0,9.299e-05,2]
[405770408,1771290638861,-500.0,9.299e-05,2]
[405770409,1771290638871,-177.59252206,9.299e-05,2]
[405770410,1771290638881,-500.0,9.299e-05,2]
[405770411,1771290638891,-500.0,9.299e-05,2]
[405770412,1771290638901,-500.0,9.299e-05,2]
[405770413,1771290638910,-500.0,9.299e-05,2]
[405770414,1771290638925,-2628603.72973988,9.3e-05,2]
[405770415,1771290639965,-791396.19026012,9.3e-05,2]
[405770416,1771290639975,-182.50008066,9.315e-05,2]
[405770417,1771290639985,-150.0,9.328e-05,2]
[405770418,1771290639998,-250.0,9.33e-05,2]
[405770419,1771290640008,-177.43871818,9.33e-05,2]
[405770420,1771290640018,-182.50008066,9.33e-05,2]
[405770421,1771290640030,-2500.0,9.351e-05,2]
[405770422,1771290640041,-250.0,9.36e-05,2]
[405770423,1771290640054,-5907.281,9.36e-05,2]
[405770424,1771290640063,-471.173,9.36e-05,2]
[405770425,1771290640072,-2101.27284904,9.4e-05,2]
[405770426,1771290640082,-2979.3456311,9.4e-05,2]
[405770427,1771290640092,-3272.03655846,9.4e-05,2]
[405770428,1771290640101,-3564.72748582,9.4e-05,2]
[405770429,1771290640111,-1119.06288294,9.44e-05,2]
[405770430,1771290640120,-1000.0,9.449e-05,2]
[405770431,1771290640129,-299.99,9.451e-05,2]
[405770432,1771290640139,-9999.99,9.451e-05,2]
[405770433,1771290640150,-150.99,9.451e-05,2]
[405770434,1771290640160,-999.99,9.462e-05,2]
[405770435,1771290640172,-10000.0,9.651e-05,2]
[405770436,1771290640182,-500.0,9.651e-05,2]
[405770437,1771290640193,-1000.0,9.999e-05,2]
[405770438,1771290640204,-151.0,0.0001,2]
[405770439,1771290640215,-151.0,0.0001,2]
[405770440,1771290640227,-151.0,0.0001,2]
[405770441,1771290640237,-151.0,0.0001,2]
[405770442,1771290640248,-151.0,0.0001,2]
[405770443,1771290640258,-151.0,0.0001,2]
[405770444,1771290640271,-151.0,0.0001,2]
[405770445,1771290640281,-151.0,0.0001,2]
[405770446,1771290640290,-151.0,0.0001,2]
[405770447,1771290640300,-151.0,0.0001,2]
[405770448,1771290640310,-151.0,0.0001,2]
[405770449,1771290640324,-151.0,0.0001,2]
[405770450,1771290640335,-151.0,0.0001,2]
[405770451,1771290640345,-151.0,0.0001,2]
[405770452,1771290640355,-151.0,0.0001,2]
[405770453,1771290640365,-151.0,0.0001,2]
[405770454,1771290640375,-151.0,0.0001,2]
[405770455,1771290640385,-151.0,0.0001,2]
[405770456,1771290640397,-151.0,0.0001,2]
[405770457,1771290640406,-151.0,0.0001,2]
[405770458,1771290640416,-151.0,0.0001,2]
[405770459,1771290640425,-300.0,0.00010228,2]
[405770460,1771290640436,-1680.0,0.00010228,2]
[405770461,1771290640447,-150.0,0.00010229,2]
[405770462,1771290640460,-250.0,0.0001023,2]
[405770463,1771290640473,-1852.42,0.0001024,2]
[405770464,1771290640484,-434.30375578,0.000109,2]
[405770465,1771290640495,-150.0,0.00010959,2]
[405770466,1771290640505,-416.91978995,0.00011099,2]
[405770467,1771290640514,-416.91978987,0.0001118,2]
[405770468,1771290640524,-2351.0,0.00011251,2]
[405770469,1771290640533,-150.0,0.00011274,2]
[405770470,1771290640546,-13813.96,0.00011274,2]
[405770471,1771290640556,-5586.25,0.0001143,2]
[405770472,1771290640567,-30329.47,0.00012055,2]
[405770473,1771290640577,-10705.78,0.00012177,2]
[405770474,1771290640589,-1872.91,0.00012226,2]
[405770475,1771290640598,-250.0,0.00012253,2]
[405770476,1771290640608,-3292.0,0.00012376,2]
[405770477,1771290640618,-416.91978987,0.00013009,2]
[405770478,1771290640628,-32845.8814,0.000136,2]
[405770479,1771290640637,-1000.0,0.000136,2]
[405770480,1771290640648,-1192.0,0.00013613,2]
[405770481,1771290640661,-4562.49,0.00013617,2]
[405770482,1771290640671,-434.30375573,0.00014099,2]
[405770483,1771290640682,-20773.98,0.00014688,2]
[405770484,1771290640692,-416.91978987,0.00014838,2]
[405770485,1771290640702,-175.86077414,0.00015,5]
[405770486,1771290640714,-501.0,0.00015815,2]
[405770487,1771290640725,-5586.25,0.00016002,2]
[405770488,1771290640734,-501.0,0.00016123,2]
[405770489,1771290640744,-173.53171403,0.00016414,2]
[405770490,1771290640755,-160.0,0.00016414,2]
[405770491,1771290640765,-300.0,0.00016637,2]
[405770492,1771290640775,-416.91978987,0.00016667,2]
[405770493,1771290640785,-159.33,0.00016712,2]
[405770494,1771290640795,-150.0,0.00016779,2]
[405770495,1771290640806,-150.0,0.00016779,2]
[405770496,1771290640816,-152.21761635,0.00016779,2]
[405770497,1771290640826,-500.0,0.00016779,2]
[405770498,1771290640836,-150.0,0.00016779,2]
[405770499,1771290640856,-150.0,0.00016779,2]
[405770500,1771290640868,-150.0,0.00016779,2]
[405770501,1771290640878,-500.0,0.00016779,2]
[405770502,1771290640887,-1050.0,0.00016779,2]
[405770503,1771290640897,-150.0,0.00016779,2]
[405770504,1771290640915,-154.85778265,0.00016779,2]
[405770505,1771290640930,-150.0,0.00016779,2]
[405770506,1771290640940,-150.0,0.00016779,2]
[405770507,1771290640955,-500.0,0.00016779,2]
[405770508,1771290640965,-150.0,0.00016779,2]
[405770509,1771290640975,-500.0,0.00016779,2]
[405770510,1771290640985,-150.0,0.00016779,2]
[405770511,1771290640995,-150.0,0.00016779,2]
[405770512,1771290641005,-150.0,0.00016779,2]
[405770513,1771290641015,-150.0,0.00016779,2]
[405770514,1771290641028,-150.0,0.00016779,2]
[405770515,1771290641038,-150.0,0.00016779,2]
[405770516,1771290641048,-150.0,0.00016779,2]
[405770517,1771290641058,-150.0,0.00016779,2]
[405770518,1771290641068,-150.0,0.00016834,2]
[405770519,1771290641078,-500.0,0.00016834,2]
[405770520,1771290641088,-150.0,0.00016834,2]
[405770521,1771290641098,-150.0,0.00016834,2]
[405770522,1771290641107,-150.0,0.00016834,2]
[405770523,1771290641478,-500.0,0.00016834,2]
[405770524,1771290641488,-1050.0,0.00016834,2]
[405770525,1771290641497,-150.0,0.00016834,2]
[405770526,1771290641505,-150.0,0.00016834,2]
[405770527,1771290641516,-500.0,0.00016834,2]
[405770528,1771290641526,-150.0,0.00016834,2]
[405770529,1771290641539,-388.0,0.00016834,2]
[405770530,1771290641549,-150.0,0.00016834,2]
[405770531,1771290641560,-150.0,0.00016834,2]
[405770532,1771290641569,-150.0,0.00016834,2]
[405770533,1771290641580,-150.0,0.00016834,2]
[405770534,1771290641590,-150.0,0.00016889,2]
[405770535,1771290641599,-500.0,0.00016889,2]
[405770536,1771290641610,-150.0,0.00016889,2]